Cogmind - Beta 12 X1 @@@ ROGUE MODE // 2022.08.23 @ 14:18:03 Player: jfk Result: Destroyed by G-47 Trooper with Particle Gun Performance ------------- Evolutions (2) 1000 Regions Visited (5) 1000 Robots Destroyed (49) 245 Value Destroyed (1221) 1221 Prototype IDs (23) 460 Alien Tech Used (0) 0 Bonus (325) 325 TOTAL SCORE: 4251 Bonus ------- Follower Combat Kills 25 Aligned with FarCom 300 Cogmind --------- Core Integrity 0/550 Matter 186/300 Energy 50/100 System Corruption 0% Temperature Danger (405) Movement Core (450) Ox8 Location -8/Materials Parts ------- > --- POWER (1) -------- (None) > --- PROPULSION (4) --- (None) > --- UTILITY (4) ------ Large Storage Unit Advanced Visual Processing Unit > --- WEAPON (2) ------- Spread Laser Assault Rifle > --- INVENTORY (15) --- Light Ion Engine Faulty Experimental Sensor Array PSU Rigger Guided Plasma Cannon Light Assault Rifle Grenade Launcher Grenade Launcher Field Lobotomy Kit (5) Peak State ------------ > --- POWER ------------ Deuterium Engine > --- PROPULSION ------- Light Treads Light Treads Light Treads Light Treads > --- UTILITY ---------- Large Storage Unit Advanced Visual Processing Unit Core Shielding Improved Light Armor Plating > --- WEAPON ----------- Particle Gun Heavy Assault Rifle > --- INVENTORY -------- Light Ion Engine Improved Ion Engine Light Treads Experimental Sensor Array PSU Rigger Particle Gun Spread Laser Spread Laser Guided Plasma Cannon Assault Rifle Light Assault Rifle Light Assault Rifle Grenade Launcher Grenade Launcher Field Lobotomy Kit [Rating: 24] Favorites ----------- Power Light Ion Engine Engine Light Ion Engine Propulsion Light Treads Treads Light Treads Utility Core Shielding Storage Large Storage Unit Processor Advanced Visual Processing Unit Protection Core Shielding Weapon Assault Rifle Energy Gun Small Laser Ballistic Gun Assault Rifle Build | -11 -10 -10 -10 -9 -8 ------- Run | Scr Mat Min Exi Min Mat Slots Evolved 4 | . . . . . 4 Power . | . . . . . . Propulsion 2 | . . . . . 2 Utility 2 | . . . . . 2 Weapon . | . . . . . . Parts Attached 31 | 7 2 1 . 3 18 Power 4 | 1 . . . 1 2 Engine 4 | 1 . . . 1 2 Core . | . . . . . . Reactor . | . . . . . . Propulsion 9 | 2 . . . 1 6 Treads 9 | 2 . . . 1 6 Leg . | . . . . . . Wheel . | . . . . . . Hover . | . . . . . . Flight . | . . . . . . Utility 7 | 2 2 . . . 3 Device . | . . . . . . Storage 3 | 2 1 . . . . Processor 1 | . . . . . 1 Hackware . | . . . . . . Protection 3 | . 1 . . . 2 Artifact . | . . . . . . Weapon 11 | 2 . 1 . 1 7 Energy Gun 6 | 1 . . . 1 4 Energy Cannon . | . . . . . . Ballistic Gun 5 | 1 . 1 . . 3 Ballistic Cannon . | . . . . . . Launcher . | . . . . . . Special Weapon . | . . . . . . Impact Weapon . | . . . . . . Slashing Weapon . | . . . . . . Piercing Weapon . | . . . . . . Special Melee Weapon . | . . . . . . Unidentified Prototypes . | . . . . . . Parts Lost 17 | . . 1 . 1 15 Power 2 | . . . . . 2 Propulsion 6 | . . . . . 6 Utility 2 | . . . . . 2 Weapon 7 | . . 1 . 1 5 Highest Loss Streak 14 | . . 1 . 1 14 To Critical Strikes . | . . . . . . Average Slot Usage (%) 97 | . 99 100 100 100 92 Engine 12 | . 14 14 14 14 8 Treads 29 | . 28 28 28 28 32 Storage 12 | . 14 14 14 14 9 Processor 2 | . . . . . 8 Protection 14 | . 13 14 14 14 16 Energy Gun 9 | . 14 9 . 14 9 Ballistic Gun 15 | . 14 18 28 14 8 Naked Turns . | . . . . . . Heaviest Build 39 | 11 27 28 28 31 39 Greatest Support 80 | 40 40 40 40 40 80 Greatest Overweight (x) . | . . . . . . Average Overweight (x) . | . . . . . . Largest Inventory Capacity 15 | 8 15 15 15 15 15 Average Capacity 14 | 7 13 15 15 15 15 Most Carried 15 | 5 12 15 15 15 15 Average Carried 12 | 2 8 13 14 14 14 Final Capacity 15 | 8 15 15 15 15 15 Final Carried 15 | 5 12 14 15 15 8 Class Distribution -------------------- 76% | Mutant 23% | Scavenger-Mutant Dominant Class ---------------- Mutant | -10/Materials Mutant | -10/Mines Mutant | -10/Exiles Mutant | -9/Mines Scavenger-Mutant | -8/Materials Resources | -11 -10 -10 -10 -9 -8 ----------- Run | Scr Mat Min Exi Min Mat Matter Collected 705 | 274 128 49 . 34 220 Remotely . | . . . . . . Salvage Created 1497 | 87 458 173 . 49 730 Parts 97 | 3 28 20 . 2 44 Haulers Intercepted . | . . . . . . Recyclers Shooed . | . . . . . . Parts Field Recycled . | . . . . . . Retrieved Matter . | . . . . . . Parts Self-Destructed . | . . . . . . Prevented . | . . . . . . Kills | -11 -10 -10 -10 -9 -8 ------- Run | Scr Mat Min Exi Min Mat Combat Hostiles Destroyed 42 | . 14 7 . 1 20 Guns 42 | . 14 7 . 1 20 Classes Destroyed 9 | 2 3 2 . . 2 Worker 1 | . . 1 . . . Builder 1 | . . 1 . . . Tunneler 1 | 1 . . . . . Recycler 1 | 1 . . . . . Watcher 3 | . 2 . . . 1 Swarmer 20 | . 6 6 . . 8 Grunt 18 | . 8 1 . 1 8 Sentry 3 | . . . . . 3 Hunter 1 | . . . . . 1 Best Kill Streak 8 | 2 4 3 . 1 8 Combat Bots Only 8 | . 4 3 . 1 8 Max Kills in Single Turn 2 | 1 1 2 . 1 2 Gunslinging 1 | . . . . . 1 Exploded . | . . . . . . Melee . | . . . . . . Uniques/NPCs Destroyed . | . . . . . . Combat | -11 -10 -10 -10 -9 -8 -------- Run | Scr Mat Min Exi Min Mat Damage Taken 2829 | . 381 162 . 34 2252 Core 647 | . 66 16 . . 565 Absorbed by Shields . | . . . . . . Redirected to Shielding 50 | . 15 3 . . 32 Core Remaining (%) 83 | 100 . . . 67 . Volleys Fired 132 | 4 39 13 . 2 74 Largest 2 | 2 2 2 . 2 2 Hottest 130 | 60 60 60 . 85 130 Shots Fired 254 | 8 78 25 . 4 139 Gun 254 | 8 78 25 . 4 139 Cannon . | . . . . . . Launcher . | . . . . . . Special . | . . . . . . Kinetic 130 | 4 39 14 . 3 70 Thermal 124 | 4 39 11 . 1 69 Explosive . | . . . . . . Electromagnetic . | . . . . . . Robot Hit Streak 17 | 5 17 2 . 5 11 Robot Miss Streak 6 | 1 4 3 . . 6 Penetration Max 1 | . . . . . 1 Secondary Targets 7 | . . 1 . . 6 Max Gunslinging Chain 1 | . . 1 . . 1 Shots Hit Robots 170 | 6 50 9 . 4 101 Core Hits 89 | 3 24 8 . 2 52 Critical Kills 1 | . . . . . 1 Critical Parts Destroyed . | . . . . . . Critical Strikes 2 | . . . . . 2 Burn 1 | . . . . . 1 Destroy 1 | . . . . . 1 Melee Attacks . | . . . . . . Impact . | . . . . . . Slashing . | . . . . . . Piercing . | . . . . . . Sneak Attacks . | . . . . . . Combat Hostiles . | . . . . . . Follow-up Attacks . | . . . . . . Damage Inflicted 2442 | 75 618 144 . 51 1554 Guns 2369 | 71 592 120 . 51 1535 Cannons . | . . . . . . Explosions . | . . . . . . Melee . | . . . . . . Ramming 73 | 4 26 24 . . 19 Kinetic 1195 | 27 294 67 . 35 772 Thermal 1174 | 44 298 53 . 16 763 Explosive . | . . . . . . Electromagnetic . | . . . . . . Impact . | . . . . . . Slashing . | . . . . . . Piercing . | . . . . . . Highest Corruption . | . . . . . . Average Corruption . | . . . . . . Corruption Purged . | . . . . . . Corruption Blocked . | . . . . . . Overload Shots . | . . . . . . Overflow Damage . | . . . . . . Projectiles . | . . . . . . Explosions . | . . . . . . Melee . | . . . . . . Knockbacks 1 | . 1 . . . . Impact 1 | . 1 . . . . Kinetic . | . . . . . . Secondary . | . . . . . . Self-Inflicted Damage . | . . . . . . Shots . | . . . . . . Rammed 17 | 2 6 6 . . 3 Targets Rammed 19 | 2 7 7 . . 3 Kicked . | . . . . . . Crushed 2 | . 1 1 . . . Highest Temperature 399 | . 54 . . 30 399 Average Temperature 68 | . 22 . . 19 81 Received Heat Transfer 1293 | . 150 9 . 18 1116 Effects 2 | . . . . . 2 Energy Bleed 1 | . . . . . 1 Damage (minor) 1 | . . . . . 1 Siege Activations . | . . . . . . Robots Corrupted . | . . . . . . Combat Hostiles . | . . . . . . Parts Fried . | . . . . . . Impact Corruptions . | . . . . . . Robots Melted . | . . . . . . Combat Hostiles . | . . . . . . Parts Melted 1 | . . . . . 1 Heat Transferred 2750 | 100 675 125 . 37 1813 Parts Sabotaged . | . . . . . . Parts Stolen . | . . . . . . Parts Stripped . | . . . . . . Power Chain Reactions . | . . . . . . Missiles Intercepted . | . . . . . . Alert | -11 -10 -10 -10 -9 -8 ------- Run | Scr Mat Min Exi Min Mat Peak Influence 320 | 10 266 185 . 20 320 Initial 45 | . 6 45 . . 7 Average 69 | 3 121 29 . 18 75 Maximum Alert Level 1 | . 1 . . . 1 Low Security (%) 92 | 100 80 100 . 100 93 Level 1 7 | . 19 . . . 6 Level 2 . | . . . . . . Level 3 . | . . . . . . Level 4 . | . . . . . . Level 5 . | . . . . . . High Security . | . . . . . . Max Security . | . . . . . . Squads Dispatched 5 | . 3 . . . 2 Investigation 3 | . 2 . . . 1 Extermination . | . . . . . . Reinforcement 2 | . 1 . . . 1 Assault . | . . . . . . Garrison . | . . . . . . Intercept . | . . . . . . Searches Triggered . | . . . . . . Construction Impeded . | . . . . . . Haulers Reinforced . | . . . . . . Active Scanning Responses . | . . . . . . Cargo Convoy Interrupts . | . . . . . . Stealth | -11 -10 -10 -10 -9 -8 --------- Run | Scr Mat Min Exi Min Mat Distress Signals 6 | . . . . . 6 Communications Jammed . | . . . . . . Distress Signals . | . . . . . . Times Spotted 67 | . 22 8 . 4 33 Peak Tracking Total 10 | . 4 3 . 3 10 Tactical Retreats 4 | . 1 . . 1 2 Traps | -11 -10 -10 -10 -9 -8 ------- Run | Scr Mat Min Exi Min Mat Traps Triggered 3 | . 2 . . . 1 Indirectly . | . . . . . . Trap Hack Attempts . | . . . . . . Triggered . | . . . . . . Disarmed . | . . . . . . Reprogrammed . | . . . . . . Reused . | . . . . . . Traps Extracted . | . . . . . . Installed . | . . . . . . Triggered . | . . . . . . Exploded 1 | . . . 1 . . Machines | -11 -10 -10 -10 -9 -8 ---------- Run | Scr Mat Min Exi Min Mat Machines Disabled 1 | . . . . . 1 Max in Single Turn 1 | . . . . . 1 Machines Sabotaged . | . . . . . . Garrisons Compromised . | . . . . . . Overloaded Fab Kills . | . . . . . . Hacking | -11 -10 -10 -10 -9 -8 --------- Run | Scr Mat Min Exi Min Mat Machines Accessed 3 | . 2 . 1 . . Terminals 2 | . 2 . . . . Fabricators . | . . . . . . Repair Stations . | . . . . . . Recycling Units . | . . . . . . Scanalyzers . | . . . . . . Garrison Access . | . . . . . . Total Hacks 4 | . 3 . 1 . . Successful 1 | . . . 1 . . Failed 3 | . 3 . . . . Catastrophic 2 | . 2 . . . . Database Lockouts . | . . . . . . Manual 1 | . . . 1 . . Terminals 3 | . 3 . . . . Fabricators . | . . . . . . Repair Stations . | . . . . . . Recycling Units . | . . . . . . Scanalyzers . | . . . . . . Garrison Access . | . . . . . . Terminal Hacks 1 | . . . 1 . . EX-Prototype ID Bank 1 | . . . 1 . . Fabricator Hacks . | . . . . . . Repair Station Hacks . | . . . . . . Recycling Unit Hacks . | . . . . . . Scanalyzer . | . . . . . . Garrison Access Hacks . | . . . . . . Unauthorized Hacks . | . . . . . . Terminals . | . . . . . . Fabricators . | . . . . . . Repair Stations . | . . . . . . Recycling Units . | . . . . . . Scanalyzers . | . . . . . . Garrison Access . | . . . . . . Data Cores Recovered . | . . . . . . Used . | . . . . . . Hacking Detections 2 | . 2 . . . . Full Trace Events . | . . . . . . Feedback Events . | . . . . . . Feedback Blocked . | . . . . . . Robot Schematics Acquired . | . . . . . . Robots Built . | . . . . . . Authchips . | . . . . . . Time . | . . . . . . Total Robot Build Rating . | . . . . . . Part Schematics Acquired . | . . . . . . Parts Built . | . . . . . . Authchips . | . . . . . . Time . | . . . . . . Total Part Build Rating . | . . . . . . Parts Repaired . | . . . . . . Time . | . . . . . . Parts Recycled . | . . . . . . Recycled Matter . | . . . . . . Retrieved Matter . | . . . . . . Retrieved Components . | . . . . . . Parts Scanalyzed . | . . . . . . Part Schematics Acquired . | . . . . . . Parts Damaged . | . . . . . . Bothacking | -11 -10 -10 -10 -9 -8 ------------ Run | Scr Mat Min Exi Min Mat Used RIF Installer . | . . . . . . Robots Hacked . | . . . . . . Non-combat . | . . . . . . Combat . | . . . . . . Robot Hacks Applied . | . . . . . . Relay Couplers Released . | . . . . . . Fabnet Peak Effective % . | . . . . . . Robots Rewired . | . . . . . . Allies Hacked . | . . . . . . Hacks Repelled . | . . . . . . Allies | -11 -10 -10 -10 -9 -8 -------- Run | Scr Mat Min Exi Min Mat Total Allies 2 | . . 2 . . . Largest Group 2 | . . 2 2 . . Highest-Rated Group 39 | . . 39 39 . . Highest-Rated Ally 31 | . . 31 31 . . Total Orders . | . . . . . . Ally Attacks 4 | . . 4 . . . Total Damage 66 | . . 66 . . . Kills 1 | . . 1 . . . Allies Corrupted . | . . . . . . Allies Melted . | . . . . . . Intel | -11 -10 -10 -10 -9 -8 ------- Run | Scr Mat Min Exi Min Mat Robot Analysis Total . | . . . . . . Derelict Logs Recovered 1 | . . 1 . . . Drone Launches . | . . . . . . Drone Recoveries . | . . . . . . Exploration | -11 -10 -10 -10 -9 -8 ------------- Run | Scr Mat Min Exi Min Mat Turns Passed 3566 | 102 833 1020 417 63 1131 Spaces Moved 1743 | 52 410 600 259 34 388 Core 9 | 9 . . . . . Treads 1734 | 43 410 600 259 34 388 Legs . | . . . . . . Wheels . | . . . . . . Hover . | . . . . . . Flight . | . . . . . . Fastest Speed 50 | 50 160 160 160 160 160 Average Speed 159 | 140 160 160 160 160 160 Slowest Speed 160 | 160 160 160 160 160 160 Overloaded Moves . | . . . . . . Propulsion Burnouts . | . . . . . . Robots Hopped . | . . . . . . Cave-ins Triggered . | . . . . . . Exploration Rate (%) 46 | 4 80 96 61 14 24 Regions Visited 5 Branch Regions 3 Pre-discovered Areas . | . . . . . . Known Exits Taken . | . . . . . . Unknown Exits Taken 5 | 1 1 1 1 1 . Scrap Searched 1 | . . 1 . . . Spaces Dug . | . . . . . . Terrain Destroyed 1 | . . . . . 1 Melee . | . . . . . . Projectile 1 | . . . . . 1 AOE . | . . . . . . Terrain Rammed . | . . . . . . Walls Destroyed . | . . . . . . Machines Disabled . | . . . . . . Actions | -11 -10 -10 -10 -9 -8 --------- Run | Scr Mat Min Exi Min Mat Total 2264 | 69 505 631 263 39 757 Wait 311 | . 38 8 . . 265 Move 1739 | 52 409 599 258 33 388 Hop . | . . . . . . Pick Up 20 | 4 8 3 3 . 2 Fast Attach 13 | 7 1 . . . 5 Attach 10 | . . 1 . 1 8 Detach 1 | 1 . . . . . Swap 8 | . 1 . . 2 5 Drop 12 | . 2 . 2 1 7 Fire 132 | 4 39 13 . 2 74 Melee . | . . . . . . Ram . | . . . . . . Kick . | . . . . . . Crush 18 | 1 7 7 . . 3 Escape Stasis . | . . . . . . Rewire . | . . . . . . Trap . | . . . . . . Miscellaneous . | . . . . . . Route ------- -11/Scrapyard -10/Materials (discovered 4 exits: [*Mat x2] / [*Min x2]) -10/Mines (discovered 2 exits: [*Mat] / *Exi) -10/Exiles -9/Mines -8/Materials History --------- Turn | Location | Event 19 | -11/Scrapyard | Discovered new exit (range 15) 103 | -11/Scrapyard | Entered Materials 209 | -10/Materials | Discovered new exit (range 11) 300 | -10/Materials | Discovered new exit (range 11) 310 | -10/Materials | Build established: Mutant 398 | -10/Materials | Discovered new exit (range 16) 725 | -10/Materials | Discovered new exit (range 7) 936 | -10/Materials | Entered Mines 1052 | -10/Mines | Deemed a non-threat by the Exiles lab entrance 1053 | -10/Mines | Discovered new exit (range 5) 1092 | -10/Mines | Found a damaged Exp. Sensor Array with a note attached 1095 | -10/Mines | Found Prototype Device 1747 | -10/Mines | Discovered new exit (range 3) 1796 | -10/Mines | Learned Materials security intel 1956 | -10/Mines | Entered Exiles 1956 | -10/Exiles | Accompanied by 2 allies 1986 | -10/Exiles | Led the pair of lost Derelicts to a safe place 1996 | -10/Exiles | Met 8R-AWN 2024 | -10/Exiles | Met EX-HEX 2068 | -10/Exiles | Met EX-BIN 2091 | -10/Exiles | Aligned with FarCom system 2092 | -10/Exiles | Given EX-Vault access code 2131 | -10/Exiles | Opened EX-Vault 2143 | -10/Exiles | Found Gui. Plasma Cannon 2149 | -10/Exiles | Found Field Lobotomy Kit 2155 | -10/Exiles | Found PSU Rigger 2188 | -10/Exiles | Warned to stay clear of 0b10 Research branches 2200 | -10/Exiles | Exiles lab attacked by MAIN.C 2316 | -10/Exiles | Discovered new exit (range 10) 2373 | -10/Exiles | Stole three prototypes: PSU Rigger, Gui. Plasma Cannon, Field Lobotomy Kit 2373 | -10/Exiles | Entered Mines 2374 | -9/Mines | Assembled infested the area 2379 | -9/Mines | Assisted by a Guerilla fighting off Assembled 2399 | -9/Mines | Met a Derelict bent on vengeance 2420 | -9/Mines | Discovered new exit (range 12) 2436 | -9/Mines | Entered Materials 2436 | -8/Materials | Evolved 4 slots: Propulsion x2, Utility x2 3231 | -8/Materials | Build established: Scavenger-Mutant 3524 | -8/Materials | Core integrity fell below 50% 3533 | -8/Materials | Destroyed 8 combat bots 3549 | -8/Materials | Core integrity fell below 20% 3567 | -8/Materials | Destroyed by G-47 Trooper with Particle Gun Last Messages --------------- 03540_ Switching to secondary target: G-47 Trooper. 03540_ K-01 Serf collects debris. 03549_ Destroyed Lgt. Nuclear Core. 03549_ Critical hit (Burn: +37). 03551_ Particle Gun destroyed. 03551_ Critical hit (Burn: +37). 03553_ Imp. Heat Sink melted. 03553_ G-47 Trooper destroyed. 03553_ Switching to secondary target: G-47 Trooper. 03553_ G-47 Trooper destroyed. 03556_ S-10 Pest destroyed. 03557_ Imp. Ion Engine destroyed. 03558_ Overheating: Spread Laser damaged (-14). 03559_ Overheating: Energy bleed (-18). 03561_ K-01 Serf collects debris. 03563_ R-06 Scavenger collects Aluminum Leg. 03564_ K-01 Serf collects debris. 03565_ G-47 Trooper destroyed. 03565_ Critical hit (Burn: +37). 03566_ R-06 Scavenger collects Flight Unit. Map ----- +----------------------------------------------------+ | ?????????????????????????????????????????????????? | | ?????????????????????????????????????????????????? | | ?????????????????????????????????????????????????? | | ?????????????????????????????????????????????????? | | ?????????????????????????????????????????????????? | | ?????????????????????????????????????????????+ | | ?????????????????????????????????????????????????? | | ?????????????????????????????????????????????????? | | ?????????????????????????????????????????????????? | | ?????????????????????????????????????????????????? | | ?????????????????????????????????????????????????? | | ?????????????????????????????????????????????????? | | ?????????????????????????????????????????????????? | | ?????????????????????????????????????????????????? | | ?????????????????????????????????????????????????? | | ?????????????????????????????????????????????????? | | ????????????????????????????????????????????????## | | ????????????? !!???????????????????????????????# | | ????????????? ! ???????????????????????????????# | | ?????????????? ???########????????????????????# | | ?????????????? ???# #????????????????????#* | | ?????????? ?""" ??# """"%#????????????????????# | | ?????????? """ ??#="""%g#????????????????????# | | ??????????? """ ??# "%%"=#?##########?????????# | | ???????# a u#kr=*[%#?# #?????????# | | ???????# %+==%%@*#?# "" #?????????# | | ???????# """ %######+#?# ""S #?????????## | | ???????# """ ??????#%#?# "" #??????????# | | ???????# """ ??????# #?# #??????????# | | ???##### ?????# #?#! """#??????????# | | ?? ?????# #?# """#??????????# | | ?? ?????# #?# """############ | | ? ###### ### ## # | | ???# != "%"!###+####### # | | ???# != * " # """ # | | ???# != =%! # """"" + | | ???# ############ % # """"" # | | ???# ????????????# % ### + """"" # | | ???#! "T" ???????########+##### # """ # | | ???# ??????# % # # # | | ???# ??????# % # ########### | | ???#!! ??????# = # | | ####!! ??????#![ # | | ??????# ! # | | ##############+##### ####+########## | | ## #??????? | | ## ! #??????? | | ### ## #??????? | | ??# ##################+########## [! #??????? | | ??# ????????????????# #????# [ #??????? | +----------------------------------------------------+ Best States ------------- Heat Dissipation 31 Energy Generation 14 Energy Capacity 275 Matter Stores 300 Matter Capacity 300 Sight Range 20 Terrain Scan Density 10 Armor Coverage 150 Core Shielding 20 Evasion (%) 40 Recoil Reduction 4 Item Schematics ----------------- None Robot Schematics ------------------ None Fabricated ------------ Nothing Alien Tech Used ----------------- None Achievements -------------- None Challenges ------------ None Game ------ Seed CargoImprinterShotgun Manual? 0 Play Time 00:20:06 Cumulative 378.3 hours Start 2022.08.23 @ 11:11:34 End 2022.08.23 @ 14:18:03 Sessions 3 Manual Loads 0 Difficulty Rogue Special Mode None Game No. 119 Rogue 7 Adventurer 0 Explorer 112 Win Type - Total 26 Types 15/3/1/1/1/2/1/2/0 Lore% 70 Gallery% 84 Achievement% 82 Wizard Run 0 Options --------- ASCII 1 Keyboard 1 Movement Vi Keybinds 0 Fullscreen 1 Font 18/SmallcapsGlow Map View 76x50 Tactical HUD 1 Map Filters NONE Filters NONE Steam 1 RUN: dfaaf0b0-ec92-4010-8045-e6e737896f09